bitfinex/quotes_ETHUSD_20260131
["timestamp","ask_amount","ask_price","bid_price","bid_amount"]
[1769874737428,1.28953954,2545.4,2544.1,13.2008325]
[1769874739622,1.28953954,2545.4,2544.3,13.2008325]
[1769874739827,0.30736661,2545.4,2544.4,14.0248325]
[1769874740698,0.001,2545.2,2544.4,14.0248325]
[1769874740923,0.001,2545.2,2544.5,14.60331575]
[1769874741837,0.001,2545.2,2544.6,0.98247268]
[1769874742336,0.001,2545.2,2544.5,15.58579827]
[1769874743826,0.001,2545.2,2544.5,2.38496577]
[1769874744027,0.001,2545.2,2544.5,0.98248252]
[1769874747005,0.001,2545.2,2544.4,1.8065221]
[1769874747210,12.7153963,2545.2,2544.4,0.824]
[1769874747413,12.7153963,2545.2,2544.4,1.80653582]
[1769874747722,1.27153963,2545.1,2544.4,1.80653582]
[1769874748036,1.27153963,2545.1,2544.4,0.824]
[1769874749107,1.27153963,2545.1,2544.1,13.2019325]
[1769874749108,13.69671457,2545.0,2544.1,0.98374515]
[1769874749309,13.69671457,2545.0,2544.1,0.0011]
[1769874749536,12.7143963,2544.8,2544.1,0.0011]
[1769874751214,13.69683037,2544.7,2544.1,0.0011]
[1769874751510,13.69683037,2544.7,2543.6,0.98284001]
[1769874752034,0.98243407,2544.7,2543.8,14.18361093]
[1769874752235,2.87211198,2544.9,2543.8,14.18361093]
[1769874752439,0.98235925,2544.9,2544.0,13.2008325]
[1769874752945,0.98235925,2544.9,2543.9,1.81147689]
[1769874753258,13.69675555,2544.9,2544.0,0.9827044]
[1769874753428,13.69675555,2544.9,2543.9,2.79419644]
[1769874753755,13.69675555,2544.9,2543.7,14.18363616]
[1769874754618,13.69675555,2544.9,2543.8,0.98277834]
[1769874754811,13.69675555,2544.9,2543.8,0.98277123]
[1769874755341,14.52075555,2544.9,2543.8,0.98275955]
[1769874756115,14.52075555,2544.9,2543.7,0.98279427]
[1769874756318,12.7143963,2544.7,2543.7,0.98279427]
[1769874757339,19.0643963,2544.7,2543.7,0.98279427]
[1769874757843,0.98247268,2544.6,2543.7,0.98279427]
[1769874758012,14.06786982,2544.6,2543.7,0.98279427]
[1769874759971,14.06786982,2544.6,2543.5,0.0011]
[1769874760253,13.08539714,2544.4,2543.5,0.0011]
[1769874760418,13.08539714,2544.2,2543.5,0.0011]
[1769874761238,13.23748669,2544.5,2543.5,0.0011]
[1769874761435,1.27153963,2544.4,2543.5,13.94563492]
[1769874761723,1.27153125,2544.5,2543.5,13.94563492]
[1769874761916,0.44753125,2544.5,2543.5,14.9285036]
[1769874762131,2.25407158,2544.5,2543.5,14.9285036]
[1769874762817,3.9300451,2544.6,2543.5,14.9285036]
[1769874762818,0.98249548,2544.6,2543.5,14.9285036]
[1769874763022,12.78995544,2545.1,2543.5,14.9285036]
[1769874763023,0.98245044,2544.7,2543.5,14.9285036]
[1769874763320,13.77240588,2544.7,2543.5,14.9285036]
[1769874763517,13.77240588,2544.7,2543.6,1.88612204]
[1769874763518,1.77020973,2544.6,2543.6,1.88612204]
[1769874763923,1.77020973,2544.6,2543.5,0.0011]
[1769874763924,14.56016517,2544.6,2543.5,0.0011]
[1769874764248,12.78995544,2544.4,2543.5,0.0011]
[1769874765438,12.78995544,2544.4,2543.7,0.0011]
[1769874765619,14.24960211,2544.3,2543.7,0.0011]
[1769874766645,0.98262715,2544.2,2543.7,0.0011]
[1769874767850,7.33262715,2544.2,2543.7,0.0011]
[1769874768159,12.78995544,2544.1,2543.4,0.0011]
[1769874768366,2.01225826,2544.0,2543.4,0.0011]
[1769874768948,13.77269847,2543.9,2543.4,0.0011]
[1769874769324,0.98274303,2543.9,2543.4,0.0011]
[1769874772620,2.99499113,2544.0,2543.4,0.0011]
[1769874773430,6.35,2543.9,2543.4,0.0011]
[1769874773630,0.93449911,2543.8,2543.4,0.0011]
[1769874775761,1.91730069,2543.8,2543.4,0.0011]
[1769874776261,0.93449911,2543.8,2543.4,0.0011]
[1769874778765,0.001,2543.7,2543.4,0.0011]
[1769874781930,12.78995544,2543.6,2543.1,0.0011]
[1769874782354,13.61395544,2543.6,2543.1,0.0011]
[1769874782555,13.61395544,2543.6,2542.9,0.0011]
[1769874782763,12.78995544,2543.4,2542.9,0.0011]
[1769874783548,12.78995544,2543.4,2542.3,17.87797931]
[1769874783549,12.78995544,2543.4,2542.3,13.94453492]
[1769874783782,13.77296896,2543.2,2542.2,0.0011]
[1769874784074,12.78995544,2543.0,2542.2,0.0011]
[1769874784461,12.78995544,2543.0,2542.2,0.98449955]
[1769874784779,0.824,2543.1,2542.3,0.98335596]
[1769874784975,0.824,2543.1,2542.3,13.94453492]
[1769874785552,0.824,2543.1,2542.2,0.98447127]
[1769874786082,14.59703019,2543.1,2542.2,0.0011]
[1769874786408,13.82271727,2543.0,2542.2,0.0011]
[1769874787976,12.77035243,2542.8,2542.2,0.0011]
[1769874788680,14.78622932,2543.0,2542.2,0.0011]
[1769874790277,14.78622932,2543.0,2542.4,0.0011]
[1769874790474,12.77035243,2542.8,2542.4,0.0011]
[1769874790789,0.824,2542.7,2542.4,0.0011]
[1769874791085,12.77035243,2543.6,2542.4,13.79433789]
[1769874791264,0.824,2543.4,2542.4,13.79433789]
[1769874791685,12.77035243,2543.6,2542.4,13.79433789]
[1769874792002,0.001,2543.7,2542.6,13.79323789]
[1769874792287,0.001,2543.7,2542.8,13.79323789]
[1769874793281,0.001,2543.7,2542.7,0.98320682]
[1769874793480,12.77135243,2543.7,2542.7,0.98320682]
[1769874793685,1.27713524,2543.6,2542.7,3.0744774]
[1769874793984,1.27713524,2543.6,2542.7,16.86771529]
[1769874794184,0.9838203,2543.7,2542.7,16.86771529]
[1769874795767,0.001,2543.7,2542.7,16.86771529]
[1769874798290,1.80657122,2544.4,2542.8,13.79323789]
[1769874798782,1.80657122,2544.4,2543.0,13.79323789]
[1769874798989,1.80657122,2544.4,2543.2,13.79323789]
[1769874798990,1.85078548,2544.4,2543.2,13.79323789]
[1769874799779,2.83333712,2544.4,2543.2,13.79323789]
[1769874800167,1.85078548,2544.4,2543.2,13.79323789]
[1769874801286,1.85078548,2544.4,2543.4,13.79323789]
[1769874801787,0.001,2543.5,2543.4,13.79323789]
[1769874801976,2.83333857,2544.4,2543.4,15.66404912]
[1769874802680,15.603691,2544.4,2543.3,0.98297487]
[1769874803084,1.85078548,2544.4,2543.3,14.77621276]
[1769874803289,0.98353714,2544.5,2543.3,14.77621276]
[1769874803786,12.77035243,2544.4,2543.3,0.98297487]
[1769874805660,13.75292473,2544.4,2543.3,13.79323789]
[1769874806579,12.77035243,2544.4,2543.3,13.79323789]
[1769874806889,0.001,2544.5,2543.3,13.79323789]
[1769874807074,1.55725926,2544.5,2543.5,13.79323789]
[1769874807473,13.61006705,2544.4,2542.8,17.72581515]
[1769874807792,12.77035243,2544.0,2542.9,3.93250783]
[1769874808469,12.77035243,2544.0,2542.9,0.98312949]
[1769874809985,0.98274303,2543.9,2542.9,13.79323789]
[1769874810299,0.98274303,2543.9,2542.9,14.56010705]
[1769874812096,0.9827044,2544.0,2543.0,0.98309083]
[1769874812404,13.75305683,2544.0,2542.9,0.98312672]
[1769874812589,13.75305683,2544.0,2542.7,0.98318939]
[1769874812783,12.77035243,2543.8,2542.8,0.98316425]
[1769874813172,12.77035243,2543.8,2542.9,0.98312888]
[1769874813575,12.77035243,2543.8,2543.1,0.0011]
[1769874814287,0.98279842,2543.8,2543.1,0.0011]
[1769874814808,13.75315085,2543.8,2543.1,0.0011]
[1769874815012,0.5737473,2543.7,2543.1,0.0011]
[1769874815883,6.35,2544.1,2543.1,0.0011]
[1769874815884,0.001,2544.2,2543.1,13.79433789]
[1769874816091,0.001,2544.2,2543.1,14.61833789]
[1769874816284,0.001,2544.2,2543.3,13.79323789]
[1769874817370,12.91887502,2544.2,2543.2,0.98301352]
[1769874817585,1.2918875,2544.1,2543.2,0.98301352]
[1769874818104,14.20976252,2544.1,2543.1,0.8251]
[1769874818276,12.91787502,2543.9,2543.1,0.0011]
[1769874818898,13.74187502,2543.9,2543.1,0.0011]
[1769874819805,0.824,2543.9,2543.1,0.0011]
[1769874820378,0.98278166,2543.8,2543.1,0.0011]
[1769874820578,1.55654807,2543.8,2543.1,0.0011]
[1769874820888,14.17548462,2543.8,2543.1,0.0011]
[1769874821886,0.98278166,2543.8,2543.1,0.0011]
[1769874822280,14.17548462,2543.8,2543.1,0.0011]
[1769874823213,14.12548462,2543.8,2543.1,0.0011]
[1769874823510,1.80564582,2543.7,2543.1,0.0011]
[1769874823879,13.19270296,2543.4,2542.3,14.42486529]
[1769874824192,13.19270296,2543.4,2542.2,3.93459126]
[1769874824193,13.19270296,2543.2,2542.2,14.42600574]
[1769874824393,0.46664159,2543.1,2542.2,14.42600574]
[1769874825101,0.98309083,2543.0,2542.2,14.42600574]
[1769874826109,0.98309083,2543.0,2542.5,0.0011]
[1769874826479,1.44971835,2543.1,2542.5,0.0011]
[1769874827415,0.98295819,2543.4,2542.5,0.0011]
[1769874827620,0.98295819,2543.4,2542.5,13.4426305]
[1769874829484,0.98295819,2543.4,2542.5,0.0011]
[1769874829485,13.19270296,2543.2,2542.5,0.0011]
[1769874831683,14.17575514,2543.1,2542.5,0.0011]
[1769874831884,1.75852909,2543.0,2542.5,0.0011]
[1769874832806,0.98305218,2543.1,2542.5,0.0011]
[1769874834316,0.824,2543.0,2542.5,0.0011]
[1769874834887,7.174,2543.0,2542.5,0.0011]
[1769874836303,0.98312949,2542.9,2542.5,0.0011]
[1769874840927,6.35,2542.8,2542.5,0.0011]
[1769874841225,1.80697141,2543.4,2542.6,13.4415305]
[1769874841432,14.51197326,2543.3,2542.5,0.0011]
[1769874842131,14.51197326,2543.3,2542.3,0.0011]
[1769874842132,13.19270296,2543.1,2541.9,0.0011]
[1769874842295,13.19270296,2542.9,2541.9,0.0011]
[1769874842489,13.19270296,2542.7,2541.9,0.0011]
[1769874844331,13.19270296,2542.5,2541.5,0.0011]
[1769874844517,13.19270296,2542.4,2541.5,0.0011]
[1769874844721,14.01670296,2542.3,2541.5,0.0011]
[1769874845731,0.73332455,2542.4,2541.5,13.4426305]
[1769874846034,13.19270296,2542.1,2541.4,0.0011]
[1769874846206,0.98347757,2542.0,2541.4,0.0011]
[1769874846407,1.81100908,2541.9,2541.4,0.0011]
[1769874846736,15.00371204,2541.9,2541.4,0.0011]
[1769874847102,15.00371204,2541.9,2541.1,0.0011]
[1769874847315,15.00371204,2541.9,2541.0,0.0011]
[1769874848041,15.00371204,2541.9,2540.6,0.0011]
[1769874848042,13.1774497,2541.7,2540.6,0.0011]
[1769874848242,30.11811462,2541.8,2540.6,0.0011]
[1769874848243,13.1774497,2541.5,2540.6,0.0011]
[1769874848401,13.1774497,2541.3,2540.0,13.64151951]
[1769874848602,14.0024497,2541.3,2539.6,13.64151951]
[1769874848824,14.0024497,2541.3,2539.8,14.62584023]
[1769874849027,13.1774497,2541.1,2539.9,14.62580804]
[1769874849413,0.73332455,2541.2,2539.9,14.62580804]
[1769874849414,0.73332455,2541.2,2540.0,14.62575436]
[1769874849730,0.825,2541.3,2540.0,14.62575436]
[1769874850032,0.98370976,2541.4,2540.0,14.62575436]
[1769874850033,0.825,2541.2,2540.0,14.62575436]
[1769874850910,14.16115946,2541.4,2540.0,14.62575436]
[1769874851452,1.80868841,2541.5,2540.0,14.62575436]
[1769874851727,0.47755537,2541.4,2540.2,13.64151951]
[1769874853733,0.98374847,2541.3,2540.2,14.62568314]
[1769874855027,0.001,2541.7,2540.4,13.64151951]
[1769874855833,0.001,2541.7,2540.6,13.64151951]
[1769874856920,1.80846783,2542.1,2540.6,13.64151951]
[1769874857249,0.825,2542.1,2540.6,13.64151951]
[1769874857403,6.35,2542.4,2540.8,13.64151951]
[1769874857609,2.16785008,2542.7,2541.2,13.64151951]
[1769874857827,2.16785008,2542.7,2541.4,13.64151951]
[1769874859568,1.18463029,2542.7,2541.4,13.64151951]
[1769874859736,1.18463029,2542.7,2541.6,13.64151951]
[1769874860119,0.98299668,2543.3,2541.7,13.64151951]
[1769874860452,0.98299668,2543.3,2541.9,13.64151951]
[1769874860625,0.98299668,2543.3,2542.1,13.64151951]
[1769874860818,3.34799668,2543.3,2542.1,13.64151951]
[1769874861247,16.52544638,2543.3,2542.1,13.64151951]
[1769874861548,16.52544638,2543.3,2542.1,15.08817146]
[1769874861549,0.001,2542.5,2542.1,15.08817146]
[1769874862045,0.001,2542.5,2542.1,1.44665195]
[1769874862347,0.001,2542.5,2542.0,0.825]
[1769874863239,0.001,2542.5,2541.8,2.18915195]
[1769874863438,0.001,2542.5,2542.0,0.98347653]
[1769874863640,0.001,2542.5,2542.0,0.98346806]
[1769874863845,0.001,2542.5,2542.0,0.98344107]
[1769874864856,0.001,2542.5,2542.0,14.62496058]
[1769874865225,0.001,2542.5,2541.8,0.825]
[1769874865555,0.001,2542.5,2541.8,1.80855012]
[1769874865737,0.001,2542.5,2541.8,1.39930622]
[1769874866130,0.001,2542.5,2541.8,2.38284646]
[1769874866330,0.001,2542.5,2541.8,1.55784646]
[1769874867226,6.351,2542.5,2541.8,1.55784646]
[1769874867528,6.351,2542.5,2541.8,0.57430622]
[1769874867840,6.351,2542.5,2541.8,0.98355355]
[1769874868348,7.33429206,2542.5,2541.7,0.98356651]
[1769874869528,2.365,2542.4,2541.7,0.98356651]
[1769874871155,0.001,2542.5,2541.7,14.62508602]
[1769874871327,0.98315494,2542.9,2541.9,13.64151951]
[1769874871525,0.98305218,2543.1,2541.9,13.64151951]
[1769874872155,2.365,2543.0,2541.9,13.64151951]
[1769874873758,0.98309513,2543.0,2542.1,13.64261951]
[1769874874062,0.001,2542.9,2542.2,2.28760971]
[1769874875947,0.001,2542.9,2542.3,0.98336152]
[1769874876142,0.001,2542.9,2542.3,14.62488103]
[1769874876545,6.35,2543.2,2542.4,13.64151951]
[1769874878063,6.35,2543.2,2542.5,14.53323134]
[1769874878241,8.715,2543.3,2542.6,15.39658398]
[1769874878866,8.715,2543.3,2542.7,14.37394718]
[1769874879369,2.365,2543.7,2542.7,14.37394718]
[1769874879671,2.365,2543.9,2542.7,14.37394718]
[1769874879886,2.365,2543.9,2542.9,13.54994718]
[1769874880374,2.365,2543.9,2543.0,14.53303801]
[1769874880557,0.001,2544.0,2543.0,14.53303801]
[1769874881371,3.34870933,2544.0,2543.0,14.53303801]
[1769874881745,16.38229774,2544.0,2543.0,0.98309083]
[1769874881946,2.365,2543.8,2543.0,0.98309083]
[1769874882353,3.3477832,2543.8,2542.9,3.93236335]
[1769874882549,3.34779415,2543.8,2542.9,3.93236335]
[1769874882743,2.365,2543.8,2543.0,13.68097886]
[1769874882970,2.366,2544.0,2543.0,13.68097886]
[1769874883271,2.366,2544.0,2543.2,13.68097886]
[1769874883574,2.366,2544.0,2543.4,13.68097886]
[1769874883954,0.001,2544.0,2543.4,13.68097886]
[1769874884464,0.001,2544.0,2543.5,0.98289758]
[1769874885680,0.001,2544.0,2543.3,0.824]
[1769874885681,2.366,2544.0,2543.3,0.824]
[1769874885844,15.39858841,2543.7,2542.9,0.98310952]
[1769874886049,15.39858841,2543.7,2542.9,0.824]
[1769874886247,15.39858841,2543.7,2542.4,0.9833004]
[1769874886553,15.39858841,2543.5,2542.0,14.50497886]
[1769874886872,15.39858841,2543.5,2542.1,13.68207886]
[1769874887072,2.365,2543.3,2542.2,1.45060789]
[1769874887272,15.39858841,2543.3,2542.5,0.0011]
[1769874887784,15.39858841,2543.3,2542.3,0.0011]
[1769874887785,15.41430303,2543.3,2542.3,0.0011]
[1769874888647,2.365,2543.1,2542.3,0.0011]
[1769874888873,2.69980135,2543.0,2542.3,0.0011]
[1769874889179,15.73338976,2543.0,2542.3,0.0011]
[1769874890765,3.68291596,2543.0,2542.3,0.0011]
[1769874893582,2.365,2542.8,2542.3,0.0011]
[1769874894662,6.35,2542.9,2542.3,0.0011]
[1769874894864,0.7667916,2542.8,2542.3,0.0011]
[1769874895060,2.365,2542.6,2542.1,0.0011]
[1769874895359,15.39858841,2542.6,2542.1,0.0011]
[1769874897189,0.98328416,2542.5,2542.1,0.0011]
[1769874897377,9.69828416,2542.5,2542.1,0.0011]
[1769874897577,0.82443722,2542.4,2542.1,0.0011]
[1769874897978,0.82443722,2542.4,2541.9,0.0011]
[1769874898181,3.18943722,2542.4,2541.9,0.0011]
[1769874899593,3.18943722,2542.4,2542.3,0.0011]
[1769874900404,4.70051019,2542.8,2542.3,0.0011]
[1769874900405,0.001,2542.8,2542.3,0.0011]
[1769874901201,0.001,2542.8,2542.3,13.68207886]
[1769874901703,0.001,2542.8,2542.4,0.98332284]
[1769874901995,0.001,2542.8,2542.3,14.66541157]
[1769874902195,0.001,2542.8,2542.3,15.10754557]
[1769874903315,0.001,2542.8,2542.3,0.443234]
[1769874903621,0.001,2542.8,2542.3,0.0011]
[1769874904801,3.931777,2543.4,2542.3,0.0011]
[1769874904802,13.03358841,2543.5,2542.3,14.66541809]
[1769874905118,2.365,2543.4,2542.3,14.66541809]
[1769874905410,2.365,2543.4,2542.4,15.54086528]
[1769874905784,2.365,2543.3,2542.4,15.54086528]
[1769874906876,2.365,2543.4,2542.4,15.54086528]
[1769874908383,3.93129406,2543.7,2542.5,14.05350817]
[1769874908384,2.365,2543.3,2542.5,14.05350817]
[1769874908615,2.365,2543.3,2542.6,15.05487714]
[1769874909609,0.98284717,2543.7,2542.6,15.05487714]
[1769874909610,2.365,2543.2,2542.6,15.05487714]
[1769874910415,2.365,2543.2,2542.7,0.98320682]
[1769874910713,2.365,2543.5,2542.7,0.98320682]
[1769874910919,15.9995977,2543.5,2542.7,0.98320682]
[1769874911115,15.9995977,2543.3,2542.7,0.69007134]
[1769874911414,15.9995977,2543.3,2542.6,0.98321968]
[1769874912018,15.9995977,2543.3,2542.6,0.98431968]
[1769874912195,0.001,2543.1,2542.6,0.98431968]
[1769874912393,0.001,2543.1,2542.6,0.49284401]
[1769874913114,0.001,2543.8,2542.7,13.89422401]
[1769874914118,0.001,2543.8,2542.9,13.07022401]
[1769874914503,0.001,2543.8,2543.0,14.05331484]
[1769874917592,0.001,2543.8,2543.0,15.48309083]
[1769874917790,0.001,2543.8,2543.1,15.01176943]
[1769874917993,0.001,2543.8,2543.2,0.824]
[1769874918816,0.001,2543.8,2543.3,14.05319888]
[1769874918994,0.001,2543.8,2543.3,0.98297487]
[1769874924725,0.001,2543.6,2543.3,0.98297487]
[1769874924933,0.001,2543.8,2543.4,0.57388744]
[1769874925225,0.001,2543.8,2543.4,13.64411145]
[1769874925433,0.001,2543.8,2543.4,0.57388744]
[1769874925726,0.001,2543.8,2543.5,0.98289758]
[1769874927724,0.001,2543.8,2543.4,0.98290701]
[1769874928229,0.001,2543.8,2543.0,3.93233318]
[1769874928230,15.9995977,2543.7,2542.9,0.98312856]
[1769874928424,15.9995977,2543.5,2542.9,0.98312856]
[1769874929039,15.9995977,2543.5,2542.8,0.98314574]
[1769874929219,17.32861284,2543.5,2542.9,0.98312862]
[1769874929823,17.32861284,2543.5,2542.7,3.93281545]
[1769874932298,15.9995977,2543.4,2542.7,3.93281545]
[1769874932700,2.365,2543.4,2542.7,3.93281545]
[1769874933141,15.9995977,2543.4,2542.7,3.93281545]
[1769874934044,15.9995977,2543.4,2542.7,6.25643322]
[1769874935133,2.365,2543.6,2542.8,13.07022401]
[1769874935832,6.35,2543.7,2543.0,0.98309083]
[1769874936033,13.6345977,2543.6,2543.0,0.98309083]
[1769874936232,15.9995977,2543.6,2543.0,0.98309083]
[1769874936608,16.0005977,2543.6,2543.0,0.98309083]
[1769874938022,16.0005977,2543.6,2542.9,0.0011]
[1769874938224,16.0005977,2543.6,2542.9,0.72516956]
[1769874939941,2.366,2543.6,2542.9,13.86923396]
[1769874940130,2.366,2543.6,2543.0,0.98309083]
[1769874942419,2.366,2543.6,2543.0,14.93099794]
[1769874943540,0.001,2543.6,2543.0,14.93099794]
[1769874943745,0.001,2543.6,2543.1,1.95885917]
[1769874944320,0.001,2543.6,2543.2,0.98301352]
[1769874944521,0.001,2543.6,2543.2,14.93092063]
[1769874944716,0.001,2543.8,2543.3,13.94790711]
[1769874944923,0.001,2543.8,2543.4,1.49309206]
[1769874946218,0.001,2543.8,2543.5,0.98289758]
[1769874947921,0.001,2543.8,2543.4,2.47599989]
[1769874949456,0.001,2543.6,2543.4,2.47599989]
[1769874949951,0.001,2543.8,2543.4,2.47599989]
[1769874950152,0.001,2543.8,2543.5,3.01846026]
[1769874952649,0.001,2543.8,2543.6,13.94790711]
[1769874952833,0.001,2544.0,2543.6,13.94790711]
[1769874953731,0.001,2544.0,2543.5,3.01846026]
[1769874954520,0.001,2544.0,2543.4,1.49309206]
[1769874954725,0.001,2544.0,2543.3,0.98294334]
[1769874956353,13.70597498,2544.0,2543.3,0.98294334]
[1769874957956,13.70597498,2544.0,2543.2,0.98408821]
[1769874958141,13.70597498,2544.0,2543.2,0.0011]
[1769874958650,0.001,2544.0,2543.2,13.94900711]
[1769874958855,0.001,2544.0,2543.3,15.52351128]
[1769874959352,0.001,2544.0,2543.3,1.57560417]
[1769874960155,14.68868158,2544.0,2543.3,1.57560417]
[1769874960322,13.70597498,2544.0,2543.2,0.0011]
[1769874960939,13.70597498,2544.0,2543.5,0.0011]
[1769874961138,0.001,2543.8,2543.5,0.0011]
[1769874970354,12.95197912,2543.8,2543.5,0.0011]
[1769874972676,0.001,2543.8,2543.5,0.0011]
[1769874972872,15.32834069,2543.8,2543.3,0.0011]
[1769874973054,16.15234069,2543.8,2543.3,0.0011]
[1769874973255,16.15234069,2543.8,2543.7,0.0011]
[1769874973562,16.15234069,2543.8,2543.3,0.0011]
[1769874973563,16.15234069,2543.8,2543.5,0.0011]
[1769874973873,14.56621319,2543.7,2543.3,0.0011]
[1769874974050,1.61523407,2543.7,2543.3,0.0011]
[1769874974257,15.1695535,2543.8,2543.3,0.0011]
[1769874975776,16.15233933,2543.8,2543.3,0.0011]
[1769874976609,5.63246447,2543.7,2543.2,0.0011]
[1769874976750,12.95097912,2543.6,2543.0,0.0011]
[1769874977094,14.80932348,2543.5,2542.6,0.8251]
[1769874977265,12.95097912,2543.3,2542.6,0.0011]
[1769874977455,12.95097912,2543.3,2542.6,0.98433055]
[1769874978402,1.80695649,2543.4,2542.6,0.98433055]
[1769874978567,0.36653009,2543.3,2542.6,13.8196926]
[1769874983099,13.31750921,2543.3,2542.6,0.98433055]
[1769874983310,14.30048417,2543.3,2542.6,0.0011]
[1769874983491,14.30048417,2543.3,2542.4,0.0011]
[1769874983492,12.95097912,2543.0,2542.4,0.0011]
[1769874984417,13.93410861,2542.9,2542.4,0.0011]
[1769874984996,13.93410861,2542.9,2542.3,0.0011]
[1769874984997,12.95097912,2542.7,2542.3,0.0011]
[1769874985196,12.95097912,2542.5,2542.0,0.0011]
[1769874985391,12.95097912,2542.5,2541.6,0.98471011]
[1769874985392,12.95097912,2542.5,2541.6,0.0011]
[1769874985701,12.95097912,2542.4,2541.6,0.0011]
[1769874986095,12.95097912,2542.4,2541.6,0.98472624]
[1769874986506,13.93430815,2542.4,2541.6,0.98472624]
[1769874986682,0.56324645,2542.3,2541.6,0.98472624]
[1769874987910,13.51422557,2542.3,2541.6,0.98472624]
[1769874988811,0.56324645,2542.3,2541.6,0.98472624]
[1769874989018,13.93430815,2542.4,2541.6,0.98472624]
[1769874989228,15.07007703,2542.6,2541.6,13.82008829]
[1769874989403,0.98303528,2543.2,2541.8,12.83536205]
[1769874989606,1.80703528,2543.2,2542.0,12.83536205]
[1769874990304,0.98303528,2543.2,2542.0,12.83536205]
[1769874990508,0.9838092,2543.8,2542.4,12.83536205]
[1769874990696,0.9838092,2543.8,2542.6,12.83536205]
[1769874990902,1.87054861,2543.7,2542.8,12.83536205]
[1769874991437,0.001,2543.8,2542.8,12.83536205]
[1769874991621,0.001,2544.0,2543.0,12.83536205]
[1769874991795,0.001,2544.0,2543.2,12.83536205]
[1769874992902,0.001,2544.0,2543.4,12.83536205]
[1769874995006,0.001,2544.0,2543.4,14.47531539]
[1769874996131,0.001,2544.0,2543.4,1.63995334]
[1769874998642,0.001,2543.8,2543.4,1.63995334]
[1769874998840,0.001,2543.8,2543.1,0.824]
[1769874999003,12.60719221,2543.8,2543.2,0.98301106]
[1769874999203,0.001,2543.8,2543.2,0.98301106]
[1769874999600,0.001,2543.8,2543.1,1.80702408]
[1769874999826,0.001,2543.8,2543.1,0.824]
[1769875000035,13.43119221,2543.8,2542.8,0.0011]
[1769875000241,12.60619221,2543.6,2542.8,0.0011]
[1769875000814,13.43476526,2543.4,2542.8,0.0011]
[1769875001533,13.43476526,2543.4,2542.5,0.0011]
[1769875002206,13.43476526,2543.2,2542.5,0.0011]
[1769875003137,13.43476526,2543.0,2542.5,0.0011]
[1769875003321,1.44178174,2542.9,2542.5,0.0011]
[1769875004207,1.44178174,2542.9,2542.0,13.88819172]
[1769875004408,14.876547,2542.9,2541.9,0.98351626]
[1769875004932,14.876547,2542.9,2541.6,0.0011]
[1769875004933,14.876547,2542.9,2541.8,0.98352697]
[1769875005532,14.41793342,2542.8,2541.6,17.8237998]
[1769875005734,1.44178174,2542.9,2541.8,0.2335703]
[1769875005937,0.98300005,2543.3,2541.9,14.71219172]
[1769875006231,20.76773891,2543.4,2541.9,14.71219172]
[1769875007857,7.33297365,2543.4,2542.0,0.98347757]
[1769875008014,0.824,2543.5,2542.3,13.88819172]
[1769875008219,13.43476526,2543.6,2542.3,13.88819172]
[1769875009252,13.43476526,2543.6,2542.2,13.88819172]
[1769875009462,6.31200514,2543.7,2542.3,2.89623305]
[1769875009463,15.4094423,2543.5,2542.3,2.89623305]
[1769875009756,13.43476526,2543.5,2542.2,13.88819172]
[1769875010055,0.98293622,2543.4,2542.3,0.98336152]
[1769875010349,14.41770148,2543.4,2542.3,0.98336152]
[1769875010516,14.41770148,2543.4,2542.3,0.98446152]
[1769875010717,1.83494464,2543.3,2542.3,0.98446152]
[1769875013955,13.43476526,2543.2,2542.3,0.98446152]
[1769875014633,2.365,2543.1,2542.3,0.0011]
[1769875014836,15.79976526,2543.1,2542.3,0.0011]
[1769875016731,0.98309083,2543.0,2542.3,0.0011]
[1769875018263,3.34803637,2543.2,2542.3,13.88929172]
[1769875018848,0.98303637,2543.2,2542.4,0.98332284]
[1769875019673,14.41780163,2543.2,2542.3,0.0011]
[1769875022269,14.41780163,2543.2,2542.5,0.0011]
[1769875022576,0.001,2543.1,2542.5,0.0011]
[1769875022739,2.15497323,2543.1,2542.5,0.0011]
[1769875023368,0.98309083,2543.0,2542.5,0.0011]
[1769875023668,15.79976526,2542.6,2542.0,0.0011]
[1769875023869,16.62376526,2542.6,2542.0,0.0011]
[1769875024043,13.43476526,2542.4,2542.0,0.0011]
[1769875025273,3.77520168,2542.5,2542.0,0.0011]
[1769875025474,3.34830128,2542.5,2542.0,0.0011]
[1769875025969,16.78306654,2542.5,2542.0,0.0011]
[1769875026571,16.78306654,2542.5,2541.6,0.0011]
[1769875027595,13.4646391,2542.1,2541.6,0.0011]
[1769875027892,0.824,2542.0,2541.6,0.0011]
[1769875028092,1.42886391,2541.9,2541.6,0.0011]
[1769875029689,1.80749542,2542.0,2541.6,0.0011]
[1769875030905,0.824,2542.0,2541.6,0.0011]
[1769875034263,0.824,2542.0,2541.8,0.0011]
[1769875034959,0.824,2542.0,2541.5,0.0011]
[1769875034960,15.27212954,2542.0,2541.3,0.0011]
[1769875035598,15.8296391,2541.9,2541.3,0.0011]
[1769875035778,15.22835205,2541.8,2541.3,0.0011]
[1769875036683,15.22835205,2541.8,2540.8,0.0011]
[1769875036684,13.4646391,2541.6,2540.8,0.0011]
[1769875036883,13.4646391,2541.4,2540.8,0.0011]
[1769875038694,0.98374847,2541.3,2540.8,0.0011]
[1769875038891,1.80046196,2541.2,2540.8,0.0011]
[1769875039267,16.81337407,2541.4,2540.8,0.0011]
[1769875040094,0.98373497,2541.4,2540.8,0.0011]
[1769875040880,2.83892681,2541.5,2540.8,0.0011]
[1769875041398,2.01392681,2541.5,2540.8,0.0011]
[1769875041904,15.8296391,2541.4,2540.8,0.0011]
[1769875042067,2.365,2541.2,2540.8,0.0011]
[1769875042899,0.9838259,2541.1,2540.8,0.0011]
[1769875043369,14.448465,2541.1,2540.5,0.0011]
[1769875043572,16.813465,2541.1,2540.5,0.0011]
[1769875043772,16.813465,2541.1,2539.8,15.1181387]
[1769875044005,13.4646391,2540.9,2539.8,15.1181387]
[1769875044375,13.4646391,2540.9,2539.8,14.13381733]
[1769875044591,15.8296391,2540.7,2539.5,0.98441596]
[1769875044897,0.98405825,2540.5,2539.4,14.29327562]
[1769875045066,0.98405825,2540.5,2539.4,16.11639873]
[1769875045266,0.98405825,2540.5,2539.2,0.98455894]
[1769875045267,14.46441197,2540.5,2539.2,0.98455894]